bitfinex/quotes_BTCUSD_20241013
["timestamp","ask_amount","ask_price","bid_price","bid_amount"]
[1728817267167,0.54899398,62819.0,62818.0,0.17968]
[1728817268550,0.54999398,62819.0,62818.0,0.17968]
[1728817268794,0.54999398,62819.0,62818.0,0.18068]
[1728817269066,0.54999398,62819.0,62818.0,0.17968]
[1728817269067,0.52505153,62819.0,62818.0,0.17968]
[1728817269304,0.52505153,62819.0,62818.0,0.18168]
[1728817277015,0.52669153,62819.0,62818.0,0.18168]
[1728817277656,0.52569153,62819.0,62818.0,0.18168]
[1728817277896,0.52569153,62819.0,62818.0,0.21161]
[1728817278103,0.52569153,62819.0,62818.0,0.21361]
[1728817278322,0.52569153,62819.0,62818.0,0.21961]
[1728817278323,0.52669153,62819.0,62818.0,0.21961]
[1728817278492,0.52669153,62819.0,62818.0,0.21761]
[1728817278908,0.52569153,62819.0,62818.0,0.21461]
[1728817279115,0.52569153,62819.0,62818.0,0.22083706]
[1728817279311,0.52669153,62819.0,62818.0,0.23183706]
[1728817279490,0.52769153,62819.0,62818.0,0.23883706]
[1728817280767,0.52769153,62819.0,62818.0,0.24383706]
[1728817281408,0.52669153,62819.0,62818.0,0.23283706]
[1728817281601,0.52569153,62819.0,62818.0,0.22583706]
[1728817281840,0.52669153,62819.0,62818.0,0.23183706]
[1728817282038,0.52769153,62819.0,62818.0,0.24083706]
[1728817282286,0.02669153,62819.0,62818.0,0.22583706]
[1728817282536,0.50164,62829.0,62828.0,0.1515]
[1728817282779,0.50164,62829.0,62828.0,0.1535]
[1728817283010,0.52913957,62829.0,62828.0,0.1535]
[1728817284862,0.52913957,62829.0,62828.0,0.1585]
[1728817285106,0.52913957,62829.0,62828.0,0.1625]
[1728817285532,0.52913957,62829.0,62828.0,0.1655]
[1728817285750,0.52913957,62829.0,62828.0,0.1625]
[1728817285966,0.52913957,62829.0,62828.0,0.1585]
[1728817286183,0.52913957,62829.0,62828.0,0.1695]
[1728817286400,0.52853957,62829.0,62828.0,0.1695]
[1728817288364,0.52853957,62829.0,62828.0,0.1645]
[1728817288586,0.52853957,62829.0,62828.0,0.1605]
[1728817289010,0.52853957,62829.0,62828.0,0.1707584]
[1728817289219,0.52853957,62829.0,62828.0,0.1747584]
[1728817289434,0.52853957,62829.0,62828.0,0.1717584]
[1728817291069,0.52853957,62829.0,62828.0,0.1777584]
[1728817292430,0.52853957,62829.0,62828.0,0.1717584]
[1728817292635,0.52853957,62829.0,62828.0,0.1677584]
[1728817292847,0.52853957,62829.0,62828.0,0.1747584]
[1728817293069,0.52853957,62829.0,62828.0,0.1727584]
[1728817293512,0.52853957,62829.0,62828.0,0.1767584]
[1728817294552,0.52853957,62829.0,62828.0,0.1717584]
[1728817294995,0.52853957,62829.0,62828.0,0.1777584]
[1728817295439,0.52853957,62829.0,62828.0,0.1737584]
[1728817295660,0.52853957,62829.0,62828.0,0.1677584]
[1728817295919,0.52853957,62829.0,62828.0,0.1787584]
[1728817296141,0.52853957,62829.0,62828.0,0.1747584]
[1728817296372,0.52853957,62829.0,62828.0,0.1797584]
[1728817304032,0.52853957,62829.0,62828.0,0.2116884]
[1728817304687,0.52853957,62829.0,62828.0,0.1996884]
[1728817304897,0.52853957,62829.0,62828.0,0.2036884]
[1728817305155,0.52853957,62829.0,62828.0,0.2106884]
[1728817305385,0.52853957,62829.0,62828.0,0.2066884]
[1728817305629,0.52853957,62829.0,62828.0,0.2096884]
[1728817306078,0.52853957,62829.0,62828.0,0.2216884]
[1728817307959,0.52853957,62829.0,62828.0,0.40591241]
[1728817309989,0.02853957,62829.0,62828.0,0.40591241]
[1728817310202,0.02853957,62829.0,62828.0,0.40391241]
[1728817310441,0.00104,62829.0,62828.0,0.40591241]
[1728817311622,0.00104,62829.0,62828.0,0.39473241]
[1728817311841,0.00104,62829.0,62828.0,0.38473241]
[1728817312049,0.00104,62829.0,62828.0,0.39673241]
[1728817312273,0.00104,62829.0,62828.0,0.51273241]
[1728817312490,0.00104,62829.0,62828.0,0.55043222]
[1728817312706,0.00104,62829.0,62828.0,0.56443222]
[1728817312916,0.00104,62829.0,62828.0,0.818603]
[1728817313555,0.00104,62829.0,62828.0,0.790603]
[1728817314254,0.00104,62829.0,62828.0,0.6218559]
[1728817314482,0.00104,62829.0,62828.0,0.6078559]
[1728817314709,0.00104,62829.0,62828.0,0.63166379]
[1728817314963,0.00104,62829.0,62828.0,0.81410351]
[1728817315188,0.00104,62829.0,62828.0,0.71887194]
[1728817315379,0.00104,62829.0,62828.0,0.71487194]
[1728817315641,0.00104,62829.0,62828.0,0.80010351]
[1728817315848,0.00104,62829.0,62828.0,0.71887194]
[1728817316094,0.00104,62829.0,62828.0,0.73287194]
[1728817316293,0.00104,62829.0,62828.0,0.82810351]
[1728817316509,0.00104,62829.0,62828.0,0.71887194]
[1728817317380,0.00104,62829.0,62828.0,0.70487194]
[1728817317832,0.00104,62829.0,62828.0,0.80010351]
[1728817318255,0.00104,62829.0,62828.0,0.79030353]
[1728817318709,0.00104,62829.0,62828.0,0.81410351]
[1728817318948,0.00104,62829.0,62828.0,0.70484051]
[1728817319175,0.00104,62829.0,62828.0,0.81408107]
[1728817319388,0.00104,62829.0,62828.0,0.73284051]
[1728817320249,0.00104,62829.0,62828.0,0.82808107]
[1728817320702,0.00104,62829.0,62828.0,0.73284051]
[1728817321396,0.00104,62829.0,62828.0,0.80440174]
[1728817321815,0.00104,62829.0,62828.0,0.73296335]
[1728817323207,0.00104,62829.0,62828.0,0.82820391]
[1728817323428,0.00104,62829.0,62828.0,0.84727566]
[1728817324080,0.00104,62829.0,62828.0,0.8472757]
[1728817324735,0.00104,62829.0,62828.0,0.82820391]
[1728817324949,0.00104,62829.0,62828.0,0.84727524]
[1728817326058,0.00104,62829.0,62828.0,0.75203468]
[1728817326278,0.00104,62829.0,62828.0,0.87117073]
[1728817327425,0.00104,62829.0,62828.0,0.75203468]
[1728817327864,0.002,62840.0,62837.0,0.012]
[1728817328089,0.002,62840.0,62837.0,0.52372534]
[1728817328330,0.02975853,62838.0,62837.0,0.52372534]
[1728817328535,0.002,62838.0,62837.0,0.52372534]
[1728817329398,0.002,62838.0,62837.0,0.53772534]
[1728817329630,0.002,62838.0,62837.0,0.75523584]
[1728817329857,0.002,62838.0,62837.0,0.76923584]
[1728817330306,0.002,62838.0,62837.0,0.86452406]
[1728817330544,0.002,62838.0,62837.0,0.77423584]
[1728817331142,0.002,62838.0,62837.0,0.89337214]
[1728817331376,0.002,62840.0,62839.0,0.04593]
[1728817331625,0.002,62840.0,62839.0,0.44872534]
[1728817331869,0.002,62840.0,62839.0,0.61653603]
[1728817332089,0.002,62840.0,62839.0,0.5974647]
[1728817332317,0.002,62840.0,62839.0,0.68796124]
[1728817332558,0.002,62840.0,62839.0,0.68796333]
[1728817333020,0.002,62840.0,62839.0,0.71596333]
[1728817333465,0.002,62840.0,62839.0,0.54815264]
[1728817333699,0.002,62840.0,62839.0,0.53415264]
[1728817334434,0.002,62840.0,62839.0,0.46271541]
[1728817334871,0.002,62840.0,62839.0,0.44871541]
[1728817335313,0.002,62840.0,62839.0,0.46271541]
[1728817335533,0.002,62840.0,62839.0,0.47671541]
[1728817335757,0.002,62840.0,62839.0,0.42965401]
[1728817336031,0.002,62840.0,62839.0,0.44871552]
[1728817336260,0.002,62840.0,62839.0,0.47671552]
[1728817336480,0.002,62840.0,62839.0,0.47863084]
[1728817336955,0.002,62840.0,62839.0,0.46463084]
[1728817337427,0.002,62840.0,62839.0,0.52623137]
[1728817338116,0.002,62840.0,62839.0,0.47863084]
[1728817338347,0.23960193,62850.0,62849.0,0.06693]
[1728817338599,0.23960193,62850.0,62849.0,0.24721552]
[1728817338827,0.26745879,62850.0,62849.0,0.24921552]
[1728817339020,0.02949486,62850.0,62849.0,0.23015401]
[1728817339535,0.02949486,62850.0,62849.0,0.24722223]
[1728817339967,0.001638,62850.0,62849.0,0.26122223]
[1728817340191,0.001638,62850.0,62849.0,0.24922223]
[1728817340354,0.001638,62850.0,62849.0,0.26122223]
[1728817340637,0.001638,62850.0,62849.0,0.27522223]
[1728817341195,0.001638,62850.0,62849.0,0.27722223]
[1728817341441,0.001638,62850.0,62849.0,0.27522223]
[1728817341920,0.001638,62850.0,62849.0,0.24722223]
[1728817342143,0.001638,62850.0,62849.0,0.26122223]
[1728817342828,0.001638,62850.0,62849.0,0.24215401]
[1728817343059,0.001638,62850.0,62849.0,0.25615401]
[1728817343287,0.001638,62850.0,62849.0,0.27522735]
[1728817343998,0.001638,62850.0,62849.0,0.37522735]
[1728817344223,0.001638,62850.0,62849.0,0.37722735]
[1728817344450,0.23854393,62857.0,62856.0,0.04393]
[1728817344679,0.26641568,62857.0,62856.0,0.24922735]
[1728817344904,0.26641568,62857.0,62856.0,0.24722735]
[1728817345139,0.02787175,62857.0,62856.0,0.24722735]
[1728817345364,0.73854393,62864.0,62858.0,0.01]
[1728817345628,0.02341768,62859.0,62858.0,0.24722735]
[1728817346073,0.02900035,62859.0,62858.0,0.24722735]
[1728817346527,0.02900035,62859.0,62858.0,0.25822735]
[1728817346729,0.02900035,62859.0,62858.0,0.26022735]
[1728817346960,0.02900035,62859.0,62858.0,0.27222735]
[1728817347643,0.02900035,62859.0,62858.0,0.25315401]
[1728817347861,0.02900035,62859.0,62858.0,0.26122735]
[1728817348309,0.02900035,62859.0,62858.0,0.27522735]
[1728817348546,0.02900035,62859.0,62858.0,0.26122735]
[1728817348777,0.02900035,62859.0,62858.0,0.28722735]
[1728817349002,0.02900035,62859.0,62858.0,0.26815401]
[1728817349243,0.02900035,62859.0,62858.0,0.26122735]
[1728817349696,0.02900035,62859.0,62858.0,0.24722735]
[1728817349923,0.02900035,62859.0,62858.0,0.27048042]
[1728817350434,0.02900035,62859.0,62858.0,0.23740708]
[1728817350666,0.20630035,62859.0,62858.0,0.23740708]
[1728817351116,0.20630035,62859.0,62858.0,0.24940708]
[1728817351370,0.20630035,62859.0,62858.0,0.23740708]
[1728817351838,0.20630035,62859.0,62858.0,0.25140708]
[1728817352050,0.20630035,62859.0,62858.0,0.23740708]
[1728817352478,0.20630035,62859.0,62858.0,0.25140708]
[1728817352907,0.20630035,62859.0,62858.0,0.26540708]
[1728817353124,0.20626035,62859.0,62858.0,0.26540708]
[1728817353346,0.20626035,62859.0,62858.0,0.25140708]
[1728817353804,0.20626035,62859.0,62858.0,0.26540708]
[1728817355225,0.20626035,62859.0,62858.0,0.28447137]
[1728817357257,0.20626035,62859.0,62858.0,0.26540708]
[1728817357514,0.20626035,62859.0,62858.0,0.2844875]
[1728817361155,0.20626035,62859.0,62858.0,0.26540708]
[1728817361359,0.20626035,62859.0,62858.0,0.28449413]
[1728817365244,0.20626035,62859.0,62858.0,0.28449866]
[1728817365506,0.02896035,62859.0,62858.0,0.26540708]
[1728817365743,0.02896035,62859.0,62858.0,0.28450068]
[1728817366191,0.02896035,62859.0,62858.0,0.27050068]
[1728817366408,0.02896035,62859.0,62858.0,0.28450068]
[1728817366870,0.02896035,62859.0,62858.0,0.27050068]
[1728817367093,0.02896035,62859.0,62858.0,0.28450068]
[1728817367764,0.02896035,62859.0,62858.0,0.27050068]
[1728817368848,0.02896035,62859.0,62858.0,0.2705081]
[1728817370223,0.02896035,62859.0,62858.0,0.2565081]
[1728817370450,0.02896035,62859.0,62858.0,0.2705081]
[1728817370879,0.02896035,62859.0,62858.0,0.2573271]
[1728817371323,0.02896035,62859.0,62858.0,0.31898391]
[1728817371538,0.02896035,62859.0,62858.0,0.33298391]
[1728817371772,0.02896035,62859.0,62858.0,0.31898391]
[1728817372006,0.02896035,62859.0,62858.0,0.2853271]
[1728817372229,0.02896035,62859.0,62858.0,0.33298391]
[1728817372434,0.02896035,62859.0,62858.0,0.31388289]
[1728817372665,0.10656035,62859.0,62858.0,0.33299301]
[1728817374215,0.10656035,62859.0,62858.0,0.33099301]
[1728817374421,0.10656035,62859.0,62858.0,0.33299301]
[1728817374671,0.10656035,62859.0,62858.0,0.2853362]
[1728817374888,0.20066035,62859.0,62858.0,0.2853362]
[1728817375345,0.20066035,62859.0,62858.0,0.2833362]
[1728817375565,0.20066035,62859.0,62858.0,0.2853362]
[1728817376242,0.20066035,62859.0,62858.0,0.27134119]
[1728817376706,0.20066035,62859.0,62858.0,0.28034119]
[1728817376965,0.20066035,62859.0,62858.0,0.26634119]
[1728817377395,0.20066035,62859.0,62858.0,0.27834119]
[1728817377854,0.20066035,62859.0,62858.0,0.25734119]
[1728817378301,0.20066035,62859.0,62858.0,0.27834119]
[1728817379863,0.20066035,62859.0,62858.0,0.2783397]
[1728817382469,0.20066035,62859.0,62858.0,0.32607546]
[1728817384323,0.20066035,62859.0,62858.0,0.32407546]
[1728817384561,0.20066035,62859.0,62858.0,0.2783397]
[1728817384759,0.20066035,62859.0,62858.0,0.32609998]
[1728817384976,0.20066035,62859.0,62858.0,0.2783397]
[1728817385612,0.20066035,62859.0,62858.0,0.2763397]
[1728817385851,0.20066035,62859.0,62858.0,0.2783397]
[1728817386296,0.20066035,62859.0,62858.0,0.34999108]
[1728817386712,0.20066035,62859.0,62858.0,0.51849502]
[1728817386922,0.20066035,62859.0,62858.0,0.34999108]
[1728817387156,0.20066035,62859.0,62858.0,0.51849509]
[1728817387396,0.20066035,62859.0,62858.0,0.34999108]
[1728817387599,0.20066035,62859.0,62858.0,0.518481]
[1728817387821,0.20066035,62859.0,62858.0,0.34999108]
[1728817388040,0.20066035,62859.0,62858.0,0.51845026]
[1728817388535,0.20066035,62859.0,62858.0,0.34999108]
[1728817388773,0.20066035,62859.0,62858.0,0.50644585]
[1728817388983,0.20066035,62859.0,62858.0,0.49744585]
[1728817389202,0.20066035,62859.0,62858.0,0.42579447]
[1728817389407,0.20066035,62859.0,62858.0,0.48835317]
[1728817389624,0.20066035,62859.0,62858.0,0.50746684]
[1728817390088,0.20066035,62859.0,62858.0,0.26733975]
[1728817390304,0.20066035,62859.0,62858.0,0.50750294]
[1728817390723,0.20066035,62859.0,62858.0,0.52139413]
[1728817390936,0.20066035,62859.0,62858.0,0.53339413]
[1728817391145,0.20066035,62859.0,62858.0,0.45182937]
[1728817391358,0.20066035,62859.0,62858.0,0.43782937]
[1728817391578,0.20066035,62859.0,62858.0,0.42582937]
[1728817391799,0.20066035,62859.0,62858.0,0.43982937]
[1728817392039,0.20066035,62859.0,62858.0,0.45382937]
[1728817393166,0.20066035,62859.0,62858.0,0.45382874]
[1728817394464,0.20066035,62859.0,62858.0,0.5493935]
[1728817394896,0.20066035,62859.0,62858.0,0.45373078]
[1728817395347,0.20066035,62859.0,62858.0,0.54930138]
[1728817396687,0.20066035,62859.0,62858.0,0.54930178]
[1728817397113,0.20066035,62859.0,62858.0,0.45373118]
[1728817397988,0.20066035,62859.0,62858.0,0.52576648]
[1728817398221,0.20066035,62859.0,62858.0,0.45408349]
[1728817398422,0.20066035,62859.0,62858.0,0.51176627]
[1728817398650,0.20066035,62859.0,62858.0,0.42608349]
[1728817398880,0.20066035,62859.0,62858.0,0.43608349]
[1728817399095,0.20066035,62859.0,62858.0,0.43908349]
[1728817399494,0.20066035,62859.0,62858.0,0.42608349]
[1728817400306,0.20066035,62859.0,62858.0,0.32902237]
[1728817400972,0.20066035,62859.0,62858.0,0.34002237]
[1728817401424,0.20066035,62859.0,62858.0,0.35302237]
[1728817403131,0.20066035,62859.0,62858.0,0.16879836]
[1728817403549,0.20066035,62859.0,62858.0,0.14490324]
[1728817406778,0.20066035,62859.0,62858.0,0.09711551]
[1728817407483,0.20066035,62859.0,62858.0,0.07800207]
[1728817407717,0.20066035,62859.0,62858.0,0.09712206]
[1728817411249,0.20066035,62859.0,62858.0,0.07800207]
[1728817411447,0.20066035,62859.0,62858.0,0.09711801]
[1728817414758,0.20066035,62859.0,62858.0,0.07800207]
[1728817414962,0.20066035,62859.0,62858.0,0.0971164]
[1728817418230,0.20066035,62859.0,62858.0,0.09711553]
[1728817418626,0.20066035,62859.0,62858.0,0.09711541]
[1728817422266,0.20066035,62859.0,62858.0,0.09711587]
[1728817428562,0.20066035,62859.0,62858.0,0.16878955]
[1728817428985,0.20066035,62859.0,62858.0,0.09711587]
[1728817429866,0.20066035,62859.0,62858.0,0.07800207]
[1728817430088,0.20066035,62859.0,62858.0,0.09712033]
[1728817430568,0.20066035,62859.0,62858.0,0.16879401]
[1728817430811,0.02896035,62859.0,62858.0,0.16879401]
[1728817431092,0.02896035,62859.0,62858.0,0.30183495]
[1728817431323,0.0985,62864.0,62863.0,0.002]
[1728817431546,0.0985,62864.0,62863.0,0.02111826]
[1728817432002,0.0753,62868.0,62867.0,0.002]
[1728817432427,0.1738,62868.0,62867.0,0.002]
[1728817433142,0.1738,62868.0,62867.0,0.02111826]
[1728817433355,0.1738,62868.0,62867.0,0.02311826]
[1728817433634,0.1738,62868.0,62867.0,0.02310981]
[1728817434564,0.1748,62868.0,62867.0,0.02310981]
[1728817435205,0.1748,62868.0,62867.0,0.004]
[1728817436153,0.1748,62868.0,62867.0,0.032066]
[1728817436397,0.1748,62868.0,62867.0,0.004]
[1728817436850,0.1748,62868.0,62867.0,0.002]
[1728817437098,0.1738,62868.0,62867.0,0.002]
[1728817438008,0.1748,62868.0,62867.0,0.002]
[1728817438243,0.1738,62868.0,62867.0,0.002]
[1728817438469,0.1738,62868.0,62867.0,0.003]
[1728817438716,0.1738,62868.0,62867.0,0.005]
[1728817438929,0.2061998,62868.0,62867.0,0.005]
[1728817439144,0.2061998,62868.0,62867.0,0.003]
[1728817439589,0.2061998,62868.0,62867.0,0.007]
[1728817440242,0.2078378,62868.0,62867.0,0.007]
[1728817441602,0.2078378,62868.0,62867.0,0.02609644]
[1728817441845,0.2078378,62868.0,62867.0,0.02409644]
[1728817442063,0.2078378,62868.0,62867.0,0.02609644]
[1728817446662,0.2078378,62868.0,62867.0,0.03802959]
[1728817446906,0.0340378,62868.0,62867.0,0.4159536]
[1728817447145,0.001638,62868.0,62867.0,0.7850406]
[1728817447383,0.001638,62868.0,62867.0,0.66566221]
[1728817447609,0.001638,62868.0,62867.0,0.66766221]
[1728817447868,0.001638,62868.0,62867.0,0.78593221]
[1728817448095,0.001638,62868.0,62867.0,0.67466221]
[1728817448323,0.001638,62868.0,62867.0,0.79389848]
[1728817448548,0.001638,62868.0,62867.0,0.78189848]
[1728817448785,0.001638,62868.0,62867.0,0.77989848]
[1728817449025,0.001638,62868.0,62867.0,0.78989848]
[1728817449262,0.001638,62868.0,62867.0,0.80389848]
[1728817449523,0.001638,62868.0,62867.0,0.62694971]
[1728817449762,0.001638,62868.0,62867.0,0.73859056]
[1728817449986,0.001638,62868.0,62867.0,0.75259056]
[1728817450444,0.001638,62868.0,62867.0,0.72459056]
[1728817450674,0.001638,62868.0,62867.0,0.69356097]
[1728817450889,0.001638,62868.0,62867.0,0.72461706]
[1728817451129,0.001638,62868.0,62867.0,0.71061717]
[1728817451372,0.001638,62868.0,62867.0,0.52155419]
[1728817451604,0.001638,62868.0,62867.0,0.41511974]
[1728817451817,0.001638,62868.0,62867.0,0.40111974]
[1728817452273,0.001638,62868.0,62867.0,0.41511974]
[1728817452498,0.001638,62868.0,62867.0,0.36745808]
[1728817452760,0.001638,62868.0,62867.0,0.38145808]
[1728817453212,0.001638,62868.0,62867.0,0.36745808]
[1728817453669,0.001638,62868.0,62867.0,0.38145808]
[1728817454147,0.001638,62868.0,62867.0,0.62038505]
[1728817456340,0.001638,62868.0,62867.0,0.4529499]
[1728817457452,0.001638,62868.0,62867.0,0.38145808]
[1728817457920,0.001638,62868.0,62867.0,0.4338937]
[1728817458159,0.001638,62868.0,62867.0,0.62146738]
[1728817458386,0.001638,62868.0,62867.0,0.45290422]
[1728817458619,0.001638,62868.0,62867.0,0.38145806]
[1728817458850,0.001638,62868.0,62867.0,0.36745806]
[1728817459344,0.001638,62868.0,62867.0,0.38145806]
[1728817459600,0.001638,62868.0,62867.0,0.34218019]
[1728817459841,0.092738,62868.0,62867.0,0.0479]
[1728817460060,0.12531622,62868.0,62867.0,0.0339]
[1728817460305,0.20201622,62868.0,62867.0,0.0619]
[1728817460531,0.20201622,62868.0,62867.0,0.0459]
[1728817460993,0.20201622,62868.0,62867.0,0.0579]
[1728817461258,0.03421622,62868.0,62867.0,0.002]
[1728817461486,0.03421622,62868.0,62867.0,0.0409]
[1728817461725,0.03421622,62868.0,62867.0,0.0319]
[1728817461944,0.20201622,62868.0,62867.0,0.0319]
[1728817462166,0.20201622,62868.0,62867.0,0.0339]
[1728817462622,0.1678,62867.0,62866.0,0.002]
[1728817462837,0.03421622,62868.0,62867.0,0.014]
[1728817463073,0.001638,62868.0,62867.0,0.014]
[1728817463286,0.169438,62868.0,62867.0,0.012]
[1728817463503,0.1678,62867.0,62865.0,0.0319]
[1728817463723,0.001638,62868.0,62864.0,0.000819]
[1728817463724,0.1678,62866.0,62864.0,0.000819]
[1728817463946,0.1678,62865.0,62864.0,0.002819]
[1728817465102,0.1678,62865.0,62864.0,0.010819]
[1728817465316,0.1678,62865.0,62864.0,0.012819]
[1728817465534,0.1678,62865.0,62864.0,0.010819]
[1728817466259,0.1678,62865.0,62864.0,0.000819]
[1728817466492,0.1678,62865.0,62864.0,0.011819]
[1728817467329,0.1678,62865.0,62864.0,0.024819]
[1728817468648,0.1678,62865.0,62864.0,0.026819]
[1728817469614,0.1678,62865.0,62864.0,0.024819]
[1728817470046,0.1678,62865.0,62864.0,0.026819]
[1728817470472,0.1678,62865.0,62864.0,0.024819]
[1728817471355,0.1678,62865.0,62864.0,0.000819]
[1728817472020,0.1678,62865.0,62864.0,0.004819]
[1728817473650,0.1678,62865.0,62864.0,0.011819]
[1728817473861,0.1678,62865.0,62864.0,0.007819]
[1728817474072,0.1678,62865.0,62864.0,0.005819]
[1728817474287,0.20203181,62865.0,62864.0,0.005819]
[1728817474519,0.20203181,62865.0,62864.0,0.012819]
[1728817476674,0.36325582,62865.0,62864.0,0.012819]
[1728817477369,0.36489382,62865.0,62864.0,0.012819]
[1728817479012,1.33103345,62865.0,62864.0,0.012819]
[1728817480190,1.33103345,62865.0,62864.0,0.005819]
[1728817480444,1.33103345,62865.0,62864.0,0.000819]
[1728817480660,1.33303345,62865.0,62864.0,0.005819]
[1728817480870,1.33103345,62865.0,62864.0,0.005819]
[1728817481096,1.33103345,62865.0,62864.0,0.000819]
[1728817481380,1.33303345,62865.0,62864.0,0.000819]
[1728817481616,1.33503345,62865.0,62864.0,0.000819]
[1728817482081,1.35995616,62865.0,62864.0,0.000819]
[1728817483921,1.45995616,62865.0,62864.0,0.000819]
[1728817484166,1.63550615,62865.0,62864.0,0.000819]
[1728817484442,1.73057924,62865.0,62864.0,0.000819]
[1728817485393,1.69260465,62865.0,62864.0,0.000819]
[1728817485819,1.62132587,62865.0,62864.0,0.000819]
[1728817486933,1.69259921,62865.0,62864.0,0.000819]
[1728817487409,1.62132587,62865.0,62864.0,0.000819]
[1728817488507,1.66881143,62865.0,62864.0,0.000819]
[1728817489222,1.64388872,62865.0,62864.0,0.000819]
[1728817489442,1.59640316,62865.0,62864.0,0.000819]
[1728817491478,1.43503345,62865.0,62864.0,0.000819]
[1728817492179,1.459958,62865.0,62864.0,0.000819]
[1728817494905,1.53677369,62865.0,62864.0,0.000819]
[1728817495143,1.53044356,62865.0,62864.0,0.000819]
[1728817495373,1.53040011,62865.0,62864.0,0.000819]
[1728817495599,1.55420851,62865.0,62864.0,0.000819]
[1728817495799,1.64432771,62865.0,62864.0,0.000819]
[1728817496061,1.71557822,62865.0,62864.0,0.000819]
[1728817496289,1.64432771,62865.0,62864.0,0.000819]
[1728817497021,1.69176674,62865.0,62864.0,0.000819]
[1728817497251,1.68776674,62865.0,62864.0,0.000819]
[1728817497463,1.64732771,62865.0,62864.0,0.001819]
[1728817497646,1.64732771,62865.0,62864.0,0.002819]
[1728817497647,1.65232771,62865.0,62864.0,0.002819]
[1728817498336,1.69475897,62865.0,62864.0,0.001819]
[1728817498570,1.70075897,62865.0,62864.0,0.002819]
[1728817499039,1.51446471,62865.0,62864.0,0.002819]
[1728817499270,1.44403345,62865.0,62864.0,0.002819]
[1728817499935,1.44403345,62865.0,62864.0,0.001819]
[1728817500162,1.43103345,62865.0,62864.0,0.000819]
[1728817500430,1.43603345,62865.0,62864.0,0.001819]
[1728817500663,1.60116877,62865.0,62864.0,0.002819]
[1728817501990,1.62609333,62865.0,62864.0,0.002819]
[1728817502641,1.46795801,62865.0,62864.0,0.002819]
[1728817504270,1.46295801,62865.0,62864.0,0.001819]
[1728817504495,1.50639863,62865.0,62864.0,0.001819]
[1728817504711,1.50639863,62865.0,62864.0,0.002819]
[1728817504921,1.51239863,62865.0,62864.0,0.002819]
[1728817505393,1.46495801,62865.0,62864.0,0.002819]
[1728817506061,1.46495801,62865.0,62864.0,0.001819]
[1728817506062,1.53011894,62865.0,62864.0,0.001819]
[1728817506504,1.45895801,62865.0,62864.0,0.001819]
[1728817506759,1.99610933,62865.0,62864.0,0.001819]
[1728817506994,1.99310933,62865.0,62864.0,0.000819]
[1728817507204,1.87450777,62865.0,62864.0,0.000819]
[1728817507447,1.88450777,62865.0,62864.0,0.002819]
[1728817507920,1.88050777,62865.0,62864.0,0.001819]
[1728817508378,1.88450777,62865.0,62864.0,0.002819]
[1728817509031,1.85958321,62865.0,62864.0,0.002819]
[1728817509756,1.85960663,62865.0,62864.0,0.002819]
[1728817512119,1.8845342,62865.0,62864.0,0.002819]
[1728817512330,1.8845342,62865.0,62858.0,0.000819]
[1728817512331,0.6965,62859.0,62858.0,0.000819]
[1728817512541,1.11401179,62859.0,62858.0,0.000819]
[1728817512769,2.11003311,62859.0,62858.0,0.000819]
[1728817513429,2.20506463,62859.0,62858.0,0.000819]
[1728817514107,2.21106463,62859.0,62858.0,0.000819]
[1728817514323,2.37243434,62859.0,62858.0,0.000819]
[1728817515246,2.39543434,62859.0,62858.0,0.000819]
[1728817515973,2.37243434,62859.0,62858.0,0.000819]
[1728817517498,2.27740282,62859.0,62858.0,0.000819]
[1728817518405,2.27749131,62859.0,62858.0,0.000819]
[1728817520470,2.27149131,62859.0,62858.0,0.000819]
[1728817520702,2.28449131,62859.0,62858.0,0.001819]
[1728817521369,2.27649131,62859.0,62858.0,0.000819]
[1728817521585,2.1151216,62859.0,62858.0,0.000819]
[1728817521797,2.1221216,62859.0,62858.0,0.001819]
[1728817522278,2.64704877,62859.0,62858.0,0.001819]
[1728817525371,2.78965805,62859.0,62858.0,0.001819]
[1728817526526,2.89325614,62859.0,62858.0,0.001819]
[1728817526714,3.05462585,62859.0,62858.0,0.001819]
[1728817528148,2.72085614,62859.0,62858.0,0.001819]
[1728817528377,2.72104445,62859.0,62858.0,0.003819]
[1728817528606,2.47464877,62859.0,62858.0,0.001819]
[1728817529077,2.4497216,62859.0,62858.0,0.001819]
[1728817530014,2.4447216,62859.0,62858.0,0.001819]
[1728817530236,2.26924533,62859.0,62858.0,0.001819]
[1728817530493,1.07249233,62859.0,62858.0,0.002819]
[1728817531190,1.08049233,62859.0,62858.0,0.001819]
[1728817531414,1.08049233,62859.0,62858.0,0.005819]
[1728817531842,1.0527961,62859.0,62858.0,0.004819]
[1728817532027,1.07772099,62859.0,62858.0,0.004819]
[1728817532283,1.07772099,62859.0,62858.0,0.005819]
[1728817533224,1.07772099,62859.0,62858.0,0.001819]
[1728817533451,1.07772099,62859.0,62858.0,0.004819]
[1728817533682,1.27080968,62859.0,62858.0,0.001819]
[1728817533913,1.27080968,62859.0,62858.0,0.000819]
[1728817534136,1.27080968,62859.0,62858.0,0.003819]
[1728817534403,1.27080968,62859.0,62858.0,0.000819]
[1728817535132,1.27580968,62859.0,62858.0,0.000819]
[1728817535343,1.28380968,62859.0,62858.0,0.001819]
[1728817535773,1.27580968,62859.0,62858.0,0.000819]
[1728817536458,2.24194931,62859.0,62858.0,0.000819]
[1728817536670,2.48836353,62859.0,62858.0,0.000819]
[1728817537314,2.4883129,62859.0,62858.0,0.000819]
[1728817537534,2.4963129,62859.0,62858.0,0.001819]
[1728817538446,2.44249721,62859.0,62858.0,0.001819]
[1728817539105,2.41757232,62859.0,62858.0,0.001819]
[1728817541104,2.35272405,62859.0,62858.0,0.001819]
[1728817541560,2.85272405,62859.0,62858.0,0.001819]
[1728817542039,2.85277839,62859.0,62858.0,0.001819]
[1728817542262,2.87270658,62859.0,62858.0,0.001819]
[1728817543179,2.87770658,62859.0,62858.0,0.001819]
[1728817543452,3.03407629,62859.0,62858.0,0.001819]
[1728817543683,2.35648949,62859.0,62858.0,0.001819]
[1728817544840,2.45648949,62859.0,62858.0,0.001819]
[1728817545291,1.95648949,62859.0,62858.0,0.001819]
[1728817546219,1.79526548,62859.0,62858.0,0.001819]
[1728817546475,1.79528378,62859.0,62858.0,0.001819]
[1728817548254,0.83414415,62859.0,62858.0,0.001819]
[1728817548732,0.70421596,62859.0,62858.0,0.079319]
[1728817548975,0.70421596,62859.0,62858.0,0.077319]
[1728817548976,0.59972318,62859.0,62858.0,0.077319]